[Event "6th Tulsi Lal Memorial NTCC 2080"]
[Site "Lalitpur"]
[Date "2024.01.09"]
[Round "2.8"]
[White "Prasain, Punam"]
[Black "Shrestha, Riya"]
[Result "0-1"]
[ECO "C54"]
[WhiteElo "1292"]
[BlackElo "1256"]
[Annotator "NA RC COMBH"]
[PlyCount "84"]
[EventDate "2024.01.03"]
[EventType "team-tourn"]
[EventCountry "NEP"]
[SourceTitle "playchess.com"]
[Source "ChessBase"]
[SourceQuality "1"]
[TimeControl "5400+30"]

1. e4 {[%emt 0:06:05]} e5 {[%emt 0:01:10]} 2. Nf3 {[%emt 0:00:42]} Nc6 {[%emt 0:00:23]} 3. Bc4 {[%emt 0:01:03]} Bc5 {[%emt 0:00:08]} 4. c3 {[%emt 0:01:33]} Nf6 {[%emt 0:01:01]} 5. d4 {[%emt 0:00:56]} exd4 {[%emt 0:00:13]} 6. cxd4 {[%emt 0:00:19]} Bb4+ {[%emt 0:00:29]} 7. Bd2 {[%emt 0:02:06]} Bxd2+ {[%emt 0:00:13]} 8. Nbxd2 {[%emt 0:01:00]} d5 {[%emt 0:02:14]} 9. exd5 {[%emt 0:02:05]} Nxd5 {[%emt 0:01:19]} 10. Qb3 {[%emt 0:02:50]} Nce7 {[%emt 0:02:09]} 11. O-O {[%emt 0:03:14]} O-O {[%emt 0:03:34]} 12. Rfe1 {[%emt 0:02:46]} c6 {[%emt 0:03:05]} 13. Re2 {[%emt 0:03:04]} h6 {[%emt 0:18:09]} 14. Rae1 {[%emt 0:02:46]} Qc7 {[%emt 0:04:01]} 15. Bxd5 {[%emt 0:04:42]} Nxd5 {[%emt 0:00:58]} 16. Re8 {[%emt 0:00:40]} Be6 {[%emt 0:02:22]} 17. Rxf8+ {[%emt 0:01:38]} Rxf8 {[%emt 0:01:02]} 18. Qa3 {[%emt 0:03:05]} Qb6 {[%emt 0:05:52]} 19. Nc4 {[%emt 0:06:08]} Qb4 {[%emt 0:00:30]} 20. Qxb4 {[%emt 0:00:30]} Nxb4 {[%emt 0:00:30]} 21. Nd6 {[%emt 0:00:30]} Nxa2 {[%emt 0:00:30]} 22. Nxb7 {[%emt 0:00:30]} Rb8 {[%emt 0:00:30]} 23. Nc5 Rxb2 24. h3 {[%emt 0:01:34]} Kf8 {[%emt 0:30:08]} 25. Nxe6+ {[%emt 0:00:41]} fxe6 {[%emt 0:00:13]} 26. Rxe6 {[%emt 0:00:32]} Nb4 {[%emt 0:03:11]} 27. Ne5 {[%emt 0:01:11]} Rc2 {[%emt 0:05:08]} 28. Nd7+ {[%emt 0:02:02]} Kf7 {[%emt 0:01:14]} 29. Nc5 {[%emt 0:00:55]} Rxc5 {[%emt 0:00:39]} 30. Rd6 {[%emt 0:01:57]} Rd5 {[%emt 0:00:27]} 31. Rxd5 {[%emt 0:01:13]} cxd5 {[%emt 0:00:15]} 32. f4 {[%emt 0:00:38]} a5 {[%emt 0:00:15]} 33. g4 {[%emt 0:01:19]} a4 {[%emt 0:00:08]} 34. h4 {[%emt 0:00:21]} a3 {[%emt 0:00:04]} 35. g5 {[%emt 0:00:23]} a2 {[%emt 0:00:16]} 36. gxh6 {[%emt 0:00:20]} gxh6 {[%emt 0:00:09]} 37. f5 {[%emt 0:00:26]} a1=Q+ {[%emt 0:00:17]} 38. Kh2 {[%emt 0:00:22]} Kf6 {[%emt 0:00:06]} 39. h5 {[%emt 0:00:25]} Kxf5 {[%emt 0:00:13]} 40. Kg2 {[%emt 0:00:38]} Kg4 {[%emt 0:00:25]} 41. Kh2 {[%emt 0:00:17]} Qb2+ {[%emt 0:00:15]} 42. Kh1 {[%emt 0:00:20]} Kg3 {[%emt 0:00:06]} 0-1

[Event "6th Tulsi Lal Memorial NTCC 2080"]
[Site "Lalitpur"]
[Date "2024.01.09"]
[Round "3.1"]
[White "Jaiswal, Rupesh"]
[Black "Silwal, Purushottam"]
[Result "1/2-1/2"]
[ECO "B31"]
[WhiteElo "2009"]
[BlackElo "1831"]
[Annotator "TA"]
[PlyCount "179"]
[EventDate "2024.01.03"]
[EventType "team-tourn"]
[EventCountry "NEP"]
[SourceTitle "playchess.com"]
[Source "ChessBase"]
[SourceQuality "1"]
[TimeControl "5400+30"]

{[%evp 17,179,0,0,0,0,0,10,12,25,37,68,38,102,86,93,89,116,107,122,110,195,207,213,214,240,150,179,183,204,195,297,147,144,146,153,121,131,84,107,94,88,91,91,80,70,67,82,72,78,78,77,75,77,72,86,91,90,60,51,50,85,49,124,124,124,124,124,80,114,114,114,114,114,114,114,114,114,114,114,48,48,0,0,0,65,0,32,0,0,0,31,0,0,0,0,0,83,0,83,0,0,0,31,0,0,0,0,0,65,0,83,0,83,0,83,29,92,0,0,0,65,0,65,65,65,0,6,0,0,0,65,0,65,0,0,0,0,0,0,0,0,0,0,0,0,0,0,0,0,0,0,0,20,0,0,0,0,0,0,0,0,0,1,1]} 1. e4 {[%emt 1:31:00]} c5 2. Nf3 Nc6 3. Bb5 g6 4. O-O {[%emt 0:00:00]} Bg7 {[%emt 0:00:56]} 5. c3 {[%emt 0:00:00]} Nf6 {[%emt 0:00:15]} 6. Re1 {[%emt 0:00:00]} O-O {[%emt 0:00:31]} 7. d4 {[%emt 0:00:00]} d5 {[%emt 0:00:09]} 8. e5 {[%emt 0:00:00]} Ne4 {[%emt 0:00:07]} 9. Bxc6 {[%emt 0:00:00]} bxc6 {[%emt 0:00:09]} 10. Be3 {[%emt 0:00:00] B31: Sicilian: 2...Nc6 3 Bb5 g6.} cxd4 {[%emt 0:01:23]} 11. cxd4 {[%emt 0:00:00]} Qb6 {[%emt 0:00:20]} 12. Qc1 {[%emt 0:00:00]} Rb8 {[%emt 0:01:15]} 13. b3 {[%emt 0:00:00]} Bd7 {[%emt 0:02:13]} 14. Nc3 {[%emt 0:00:00][%cal Bb1c3,Bc3a4,Ba4c5][%mdl 32] [#]} f5 $146 {[%emt 0:04:46]} (14... Nxc3 $14 15. Qxc3 Rfc8) ({Predecessor:} 14... Nxc3 15. Qxc3 f6 16. e6 Be8 17. Bf4 Qb4 18. Qe3 Rb7 19. h4 a5 20. Rad1 Qa3 {1-0 Kairbekova,A (2212)-Benmesbah,N (2267) WchT (Women) Final rapid 2023 (2.3)}) 15. Na4 $16 {[%emt 0:00:00]} Qb4 {[%emt 0:01:25]} 16. Rd1 {[%emt 0:00:00]} Rbc8 {[%emt 0:03:45][%cal Of5f4]} 17. Ne1 {[%emt 0:00:00][%cal Bf3e1,Be1d3,Bd3f4][%mdl 32]} c5 {[%emt 0:12:21]} 18. Nd3 {[%emt 0:00:00]} Qa5 {[%emt 0:00:53]} (18... Qb8 $16 {keeps fighting.} 19. Naxc5 Bb5) 19. Naxc5 $18 {[%emt 0:00:00]} Bb5 {[%emt 0:01:40]} 20. b4 {[%emt 0:00:00][%cal Bb3b4,Bb4c5][%mdl 32]} Qb6 {[%emt 0:00:17]} 21. Qb2 {[%emt 0:00:00]} Nxc5 {[%emt 0:01:32]} 22. bxc5 {[%emt 0:00:00]} ({Don't do} 22. dxc5 Qc6 23. f4 Rb8) 22... Qa5 {[%emt 0:00:56]} 23. Nf4 {[%emt 0:00:00]} Rb8 {[%emt 0:01:52]} (23... Bc4 {was called for.} 24. Ne6 Rfe8) 24. Qd2 {[%emt 0:00:00]} (24. Nxd5 $18 {and White stays clearly on top.} Qd8 25. Qb3) 24... Qxd2 $16 {[%emt 0:00:56]} 25. Bxd2 {[%emt 0:00:00]} Bc4 {[%emt 0:00:10]} 26. a3 {[%emt 0:00:00]} Kf7 {[%emt 0:00:58]} 27. Bb4 {[%emt 0:00:00]} (27. Rdb1 $142) 27... Rfc8 {[%emt 0:02:11]} 28. Nd3 {[%emt 0:00:00]} e6 {[%emt 0:02:10]} 29. Nb2 {[%emt 0:00:00] Black must now prevent Nxc4.} Bb5 {[%emt 0:00:28]} 30. Rdc1 {[%emt 0:00:00]} Bh6 {[%emt 0:00:51]} 31. Rc2 {[%emt 0:00:00]} Rb7 {[%emt 0:02:01]} 32. g3 {[%emt 0:00:00]} Ke8 {[%emt 0:02:19]} 33. h4 {[%emt 0:00:00]} Kd7 {[%emt 0:03:41]} 34. f4 {[%emt 0:00:00]} Kc6 {[%emt 0:00:48]} 35. Kf2 {[%emt 0:00:00][%cal Bg1f2,Bf2f3,Bf3e3][%mdl 32]} Rg8 {[%emt 0:01:42]} 36. Rcc1 {[%emt 0:00:00][%cal Bc2c1,Bc1h1,Bh1h2][%mdl 32]} Bf8 {[%emt 0:00:57]} 37. Kf3 {[%emt 0:00:00]} h6 {[%emt 0:03:15]} 38. Rh1 {[%emt 0:00:00]} Rbg7 {[%emt 0:00:53]} 39. Rag1 {[%emt 0:00:00]} h5 {[%emt 0:05:26]} (39... Ba6 $14) 40. Ke3 {[%emt 0:01:51]} Rb7 {[%emt 0:00:25]} 41. Rb1 {[%emt 0:00:22]} Be7 42. Nd1 {[%emt 0:06:09]} Bd8 {[%emt 0:02:58]} 43. Rh2 {[%emt 0:02:52]} Bc7 {[%emt 0:00:39]} 44. Rhb2 {[%emt 0:00:45]} Rgb8 {[%emt 0:00:24]} 45. Bd2 {[%emt 0:02:18]} Bc4 {[%emt 0:01:40]} 46. Rxb7 {[%emt 0:02:06]} Rxb7 {[%emt 0:00:08]} 47. Rb4 {[%emt 0:00:44]} Rxb4 {[%emt 0:01:34]} 48. axb4 {[%emt 0:00:27][%mdl 4096] Endgame KBB-KBN} (48. Bxb4 $16 Bb5 49. Bc3) 48... a6 $14 {[%emt 0:00:15]} 49. Bc3 {[%emt 0:00:19]} (49. Kf3 $14) 49... Bd8 $11 {[%emt 0:00:19]} 50. Kd2 {[%emt 0:00:10]} Bb5 {[%emt 0:00:18]} (50... Kb5 $11) 51. Kc1 {[%emt 0:01:31]} (51. Ne3 $14) 51... Be7 {[%emt 0:00:20]} 52. Kb2 {[%emt 0:00:00]} Bd8 {[%emt 0:00:14]} 53. Ne3 {[%emt 0:00:02]} Be7 {[%emt 0:00:18]} 54. Be1 {[%emt 0:00:56]} Bd8 {[%emt 0:00:18]} 55. Nd1 {[%emt 0:00:04]} Be7 {[%emt 0:00:12]} 56. Nc3 {[%emt 0:00:02]} Bd8 {[%emt 0:00:10]} (56... Bd3 $11) 57. Ka3 {[%emt 0:00:07]} (57. Nxb5 $16 Kxb5 58. Kb3) 57... Bc7 {[%emt 0:00:36]} (57... Bd3 $11 {keeps the balance.}) 58. Nb1 {[%emt 0:00:53]} (58. Nxb5 $16 Kxb5 59. Kb3) 58... Bd8 {[%emt 0:00:23]} 59. Kb2 {[%emt 0:01:47]} Be7 {[%emt 0:00:12]} 60. Kc1 {[%emt 0:00:01]} Bd8 {[%emt 0:00:09]} 61. Kd2 {[%emt 0:00:08]} Be7 {[%emt 0:00:36]} 62. Ke3 {[%emt 0:00:37]} Bd8 {[%emt 0:00:11]} ({Black should play} 62... Bf1 $11) 63. Nc3 {[%emt 0:02:35]} (63. Nd2 $1 $14) 63... Be7 {[%emt 0:00:18]} (63... Bf1 $11 {remains equal.}) 64. Kd2 {[%emt 0:00:23]} (64. Nxb5 $16 {Strongly threatening Nd6.} Kxb5 65. Kd3) 64... Bd8 {[%emt 0:00:08]} (64... Bf1 $11) 65. Kc2 {[%emt 0:00:03]} (65. Nxb5 $16 {Nd6 is the strong threat.} axb5 66. Kd3) 65... Be7 {[%emt 0:00:11]} (65... Bf1 $11) 66. Kb3 {[%emt 0:00:05]} (66. Nxb5 $16 Kxb5 67. Kc3) 66... Bd8 {[%emt 0:00:07]} (66... Bf1 $11) 67. Nb1 {[%emt 0:01:08]} (67. Nxb5 $16 Kxb5 68. Bd2) 67... Bc7 {[%emt 0:00:12]} 68. Nd2 {[%emt 0:00:01]} Bd8 {[%emt 0:00:08]} (68... Be2 $11) 69. Bf2 {[%emt 0:01:43]} ({Better is} 69. Nf3 $1 $14) 69... Be7 {[%emt 0:00:08]} (69... Be2 $1 $11) 70. Nf3 $1 $14 {[%emt 0:00:46]} Be2 {[%emt 0:00:10]} 71. Ne1 {[%emt 0:00:18]} ({White should try} 71. Ng5 $1 $14) 71... Bc4+ {[%emt 0:00:07]} 72. Ka4 {[%emt 0:00:11]} Bb5+ {[%emt 0:00:05]} 73. Ka3 {[%emt 0:00:19]} Bd8 {[%emt 0:00:06]} (73... Be2 $1 $11) 74. Kb2 {[%emt 0:01:39]} (74. Nf3 $1 $14) 74... Be7 {[%emt 0:00:12]} (74... Be2 $1 $11) 75. Nc2 {[%emt 0:00:24]} (75. Nf3 $1 $14) 75... Bd8 {[%emt 0:00:07] The position is equal.} 76. Na1 {[%emt 0:00:15]} Bc4 {[%emt 0:00:09]} 77. Be1 {[%emt 0:00:39]} Bc7 {[%emt 0:00:27]} 78. Nc2 {[%emt 0:01:48]} Bb5 {[%emt 0:00:09]} 79. Na1 {[%emt 0:00:24]} Bc4 {[%emt 0:00:08]} 80. Ka3 {[%emt 0:00:13]} Bd8 {[%emt 0:00:08]} 81. Bc3 {[%emt 0:01:02]} Bc7 {[%emt 0:00:12]} 82. Kb2 {[%emt 0:00:13]} Bd8 {[%emt 0:00:07]} 83. Nc2 {[%emt 0:00:18]} Bb5 {[%emt 0:00:06]} 84. Be1 {[%emt 0:00:11]} Be7 {[%emt 0:00:07]} 85. Na1 {[%emt 0:00:12]} Bd8 {[%emt 0:00:06]} 86. Nb3 {[%emt 0:00:07]} Bc4 {[%emt 0:00:08]} 87. Nc1 {[%emt 0:00:19]} Kb5 {[%emt 0:00:09]} 88. Ka3 {[%emt 0:00:16]} Bc7 {[%emt 0:00:25]} 89. Bd2 {[%emt 0:01:36]} Bd8 {[%emt 0:00:06]} 90. Bc3 {[%emt 0:01:42] White really could win this.   Weighted Error Value: White=0.19 (very precise) /Black=0.21 (precise)} 1/2-1/2

[Event "6th Tulsi Lal Memorial NTCC 2080"]
[Site "Lalitpur"]
[Date "2024.01.09"]
[Round "3.2"]
[White "Kachhepati, Rajesh"]
[Black "Dahal, Sushrut"]
[Result "1/2-1/2"]
[ECO "B22"]
[WhiteElo "1747"]
[BlackElo "1895"]
[Annotator "NA RC COMBH"]
[PlyCount "184"]
[EventDate "2024.01.03"]
[EventType "team-tourn"]
[EventCountry "NEP"]
[SourceTitle "playchess.com"]
[Source "ChessBase"]
[SourceQuality "1"]
[TimeControl "5400+30"]

1. e4 {[%emt 0:02:57]} c5 {[%emt 0:00:05]} 2. Nf3 {[%emt 0:00:42]} e6 {[%emt 0:00:28]} 3. c3 {[%emt 0:01:06]} d5 {[%emt 0:00:16]} 4. exd5 {[%emt 0:00:43]} Qxd5 {[%emt 0:00:22]} 5. Bb5+ {[%emt 0:03:35]} Bd7 {[%emt 0:01:39]} 6. Bxd7+ {[%emt 0:01:31]} Nxd7 {[%emt 0:00:10]} 7. d4 {[%emt 0:00:18]} Ngf6 {[%emt 0:01:14]} 8. O-O {[%emt 0:00:43]} Bd6 {[%emt 0:02:08]} 9. Be3 {[%emt 0:03:36]} Ng4 {[%emt 0:02:37]} 10. Nbd2 {[%emt 0:01:14]} O-O {[%emt 0:05:07]} 11. h3 {[%emt 0:00:22]} Nxe3 {[%emt 0:00:47]} 12. fxe3 {[%emt 0:02:37]} f5 {[%emt 0:10:19]} 13. Qb3 {[%emt 0:04:16]} Nb6 {[%emt 0:01:44]} 14. a4 {[%emt 0:02:32]} Qxb3 {[%emt 0:04:20]} 15. Nxb3 {[%emt 0:00:11]} Nc4 {[%emt 0:01:29]} 16. Rf2 {[%emt 0:05:52]} Nxe3 {[%emt 0:07:38]} 17. Nxc5 {[%emt 0:02:18]} Bxc5 {[%emt 0:14:04]} 18. dxc5 {[%emt 0:00:32]} Rac8 {[%emt 0:00:49]} 19. Re2 {[%emt 0:01:09]} f4 {[%emt 0:01:26]} 20. b4 {[%emt 0:00:51]} Rfd8 {[%emt 0:02:08]} 21. Rc1 {[%emt 0:05:29]} Rd3 {[%emt 0:03:43]} 22. Ne1 {[%emt 0:01:30]} Rd7 {[%emt 0:01:35]} 23. Nc2 {[%emt 0:01:31]} Nd5 {[%emt 0:02:50]} 24. c4 {[%emt 0:01:25]} Nc3 {[%emt 0:01:06]} 25. Rxe6 {[%emt 0:00:44]} Nxa4 {[%emt 0:00:14]} 26. Ra1 {[%emt 0:01:08]} Nb2 {[%emt 0:01:45]} 27. Rxa7 {[%emt 0:01:34]} Nxc4 {[%emt 0:06:00]} 28. Re4 {[%emt 0:01:25]} Nb2 {[%emt 0:05:29]} 29. Rxf4 {[%emt 0:01:09]} h6 {[%emt 0:02:33]} 30. Ne3 {[%emt 0:02:02]} Rcc7 {[%emt 0:01:26]} 31. Re4 {[%emt 0:02:38]} Rd3 {[%emt 0:03:19]} 32. Nc4 {[%emt 0:02:24]} Rd1+ {[%emt 0:00:51]} 33. Kh2 {[%emt 0:00:35]} Nxc4 {[%emt 0:03:59]} 34. Rxc4 {[%emt 0:00:33]} Rb1 {[%emt 0:00:48]} 35. h4 {[%emt 0:02:14]} h5 {[%emt 0:02:49]} 36. Rf4 {[%emt 0:02:37]} Rb3 {[%emt 0:00:51]} 37. Ra8+ {[%emt 0:03:40]} Kh7 {[%emt 0:00:14]} 38. Ra7 {[%emt 0:00:50]} Kg8 {[%emt 0:00:32]} 39. Ra2 {[%emt 0:39:27]} Kh7 {[%emt 0:11:06]} 40. Re2 {[%emt 0:00:00]} Rc6 {[%emt 0:00:00]} 41. Re5 {[%emt 0:00:00]} Kh6 {[%emt 0:00:00]} 42. Rg5 {[%emt 0:00:00]} b6 {[%emt 0:00:00]} 43. Rc4 {[%emt 0:00:00]} bxc5 {[%emt 0:00:00]} 44. bxc5 {[%emt 0:00:00]} g6 {[%emt 0:00:00]} 45. Rd5 {[%emt 0:00:00]} Kg7 {[%emt 0:00:00]} 46. Rc2 {[%emt 0:00:00]} Kf7 {[%emt 0:00:00]} 47. g3 {[%emt 0:00:00]} Ke6 {[%emt 0:00:00]} 48. Rg5 {[%emt 0:00:00]} Kd7 {[%emt 0:00:00]} 49. Kg2 {[%emt 0:00:00]} Kc7 {[%emt 0:00:00]} 50. Rf2 {[%emt 0:00:00]} Re6 {[%emt 0:00:00]} 51. Ra2 {[%emt 0:00:00]} Rb5 {[%emt 0:00:19]} 52. Ra7+ {[%emt 0:00:00]} Kb8 {[%emt 0:00:15]} 53. Rf7 {[%emt 0:00:00]} Rb2+ {[%emt 0:00:54]} 54. Rf2 {[%emt 0:00:00]} Rb5 {[%emt 0:00:26]} 55. Rc2 {[%emt 0:00:00]} Kc7 {[%emt 0:00:25]} 56. Kf2 {[%emt 0:00:00]} Kc6 {[%emt 0:00:33]} 57. Rc3 {[%emt 0:00:00]} Rb2+ {[%emt 0:01:14]} 58. Kf3 {[%emt 0:00:00]} Rb1 {[%emt 0:00:29]} 59. Rd3 {[%emt 0:00:00]} Rf1+ {[%emt 0:01:11]} 60. Kg2 {[%emt 0:00:00]} Rff6 {[%emt 0:01:22]} 61. Rd2 {[%emt 0:00:00]} Rf7 {[%emt 0:00:46]} 62. Rb2 {[%emt 0:00:00]} Kc7 {[%emt 0:00:14]} 63. Ra2 {[%emt 0:00:00]} Kb7 {[%emt 0:00:41]} 64. Rd5 {[%emt 0:00:00]} Kc6 {[%emt 0:00:37]} 65. Rg5 {[%emt 0:00:00]} Kb7 {[%emt 0:00:25]} 66. Rf2 {[%emt 0:00:00]} Rd7 {[%emt 0:00:17]} 67. Rb2+ {[%emt 0:00:00]} Kc7 {[%emt 0:00:22]} 68. Kf1 {[%emt 0:00:00]} Rd1+ {[%emt 0:00:23]} 69. Kf2 {[%emt 0:00:00]} Rd7 {[%emt 0:00:08]} 70. Ra2 {[%emt 0:00:00]} Kb7 {[%emt 0:00:20]} 71. Kf3 {[%emt 0:00:00]} Rd3+ {[%emt 0:00:37]} 72. Kg2 {[%emt 0:00:00]} Rd7 {[%emt 0:00:07]} 73. Rc2 {[%emt 0:00:00]} Kc6 {[%emt 0:00:10]} 74. Kh3 {[%emt 0:00:00]} Rf7 {[%emt 0:00:48]} 75. Rb2 {[%emt 0:00:00]} Kc7 {[%emt 0:00:38]} 76. Kg2 {[%emt 0:00:00]} Rd7 {[%emt 0:00:27]} 77. Rf2 {[%emt 0:00:00]} Kc6 {[%emt 0:00:18]} 78. Rb2 {[%emt 0:01:09]} Kc7 {[%emt 0:00:17]} 79. g4 {[%emt 0:00:00]} hxg4 {[%emt 0:00:16]} 80. Rxg4 {[%emt 0:00:00]} Rd5 {[%emt 0:00:17]} 81. Rb6 {[%emt 0:00:00]} Rxb6 {[%emt 0:02:29]} 82. cxb6+ {[%emt 0:00:00]} Kxb6 {[%emt 0:00:07]} 83. Rxg6+ {[%emt 0:00:00]} Kc7 {[%emt 0:00:03]} 84. Re6 {[%emt 0:00:36]} Kd7 {[%emt 0:00:08]} 85. Re4 {[%emt 0:00:23]} Rd6 {[%emt 0:00:13]} 86. Kg3 {[%emt 0:00:26]} Re6 {[%emt 0:00:06]} 87. Rf4 {[%emt 0:00:37]} Ke7 {[%emt 0:00:14]} 88. Kg4 {[%emt 0:00:13]} Rf6 {[%emt 0:00:19]} 89. Ra4 {[%emt 0:02:10]} Kf7 {[%emt 0:00:11]} 90. h5 {[%emt 0:00:02]} Kg7 {[%emt 0:00:19]} 91. Kg5 {[%emt 0:00:12]} Rf7 {[%emt 0:00:11]} 92. Ra6 {[%emt 0:00:47]} Rb7 {[%emt 0:00:21]} 1/2-1/2

[Event "6th Tulsi Lal Memorial NTCC 2080"]
[Site "Lalitpur"]
[Date "2024.01.09"]
[Round "3.3"]
[White "Shrestha, Muhan Narshing"]
[Black "Duwal, Swornim"]
[Result "1/2-1/2"]
[ECO "E18"]
[WhiteElo "1693"]
[BlackElo "1390"]
[Annotator "NA RC COMBH"]
[PlyCount "126"]
[EventDate "2024.01.03"]
[EventType "team-tourn"]
[EventCountry "NEP"]
[SourceTitle "playchess.com"]
[Source "ChessBase"]
[SourceQuality "1"]
[TimeControl "5400+30"]

1. d4 {[%emt 0:04:01]} d5 {[%emt 0:00:04]} 2. c4 {[%emt 0:00:12]} e6 {[%emt 0:01:04]} 3. Nf3 {[%emt 0:00:23]} Nf6 {[%emt 0:00:40]} 4. g3 {[%emt 0:00:10]} Be7 {[%emt 0:00:25]} 5. Bg2 {[%emt 0:00:04]} O-O {[%emt 0:01:38]} 6. O-O {[%emt 0:00:07]} b6 {[%emt 0:02:28]} 7. Nc3 {[%emt 0:00:23]} Bb7 {[%emt 0:01:02]} 8. Ne5 {[%emt 0:00:17]} Nbd7 {[%emt 0:03:15]} 9. Qa4 {[%emt 0:07:23]} c5 {[%emt 0:06:40]} 10. Nxd7 {[%emt 0:01:20]} Qxd7 {[%emt 0:01:36]} 11. Qxd7 {[%emt 0:00:26]} Nxd7 {[%emt 0:00:06]} 12. dxc5 {[%emt 0:00:26]} Bxc5 {[%emt 0:07:25]} 13. cxd5 {[%emt 0:00:36]} exd5 {[%emt 0:05:04]} 14. Nxd5 {[%emt 0:00:55]} Bxd5 {[%emt 0:03:56]} 15. Bxd5 {[%emt 0:00:08]} Rad8 {[%emt 0:01:36]} 16. Bg5 {[%emt 0:00:46]} Nf6 {[%emt 0:01:48]} 17. Bf3 {[%emt 0:00:07]} Bd4 {[%emt 0:07:15]} 18. Rab1 {[%emt 0:01:11]} h6 {[%emt 0:01:06]} 19. Bxf6 {[%emt 0:09:25]} Bxf6 {[%emt 0:01:18]} 20. b3 {[%emt 0:00:30]} Rd2 {[%emt 0:01:17]} 21. a4 {[%emt 0:00:16]} Rc8 {[%emt 0:02:28]} 22. Rfd1 {[%emt 0:00:30]} Rcc2 {[%emt 0:00:30]} 23. Kg2 {[%emt 0:00:30]} a5 {[%emt 0:00:30]} 24. h4 {[%emt 0:00:30]} Bd4 {[%emt 0:00:30]} 25. Be4 {[%emt 0:00:30]} Rb2 {[%emt 0:00:30]} 26. Rxb2 {[%emt 0:00:30]} Rxd1 {[%emt 0:00:30]} 27. Rc2 {[%emt 0:00:30]} Bc5 {[%emt 0:00:30]} 28. Bd3 g6 29. h5 {[%emt 0:11:53]} g5 {[%emt 0:24:30]} 30. Rc4 {[%emt 0:03:17]} Rd2 {[%emt 0:03:41]} 31. Re4 {[%emt 0:00:35]} Kg7 {[%emt 0:02:06]} 32. Re8 {[%emt 0:01:17]} Rb2 {[%emt 0:03:01]} 33. Bc4 {[%emt 0:00:05]} Rd2 {[%emt 0:00:25]} 34. Re5 {[%emt 0:01:52]} Rd6 {[%emt 0:00:54]} 35. f4 {[%emt 0:00:55]} gxf4 {[%emt 0:04:07]} 36. gxf4 {[%emt 0:00:58]} Rd1 {[%emt 0:00:35]} 37. e3 {[%emt 0:01:26]} Rd6 {[%emt 0:01:30]} 38. Kf3 {[%emt 0:00:19]} Rd7 {[%emt 0:02:00]} 39. Re8 {[%emt 0:01:27]} Re7 {[%emt 0:01:06]} 40. Rxe7 {[%emt 0:00:45]} Bxe7 {[%emt 0:00:02]} 41. e4 {[%emt 0:05:14]} Bc5 {[%emt 0:03:35]} 42. e5 {[%emt 0:12:15]} Kf8 {[%emt 0:01:26]} 43. f5 {[%emt 0:01:56]} f6 {[%emt 0:01:42]} 44. exf6 {[%emt 0:00:25]} Bd4 {[%emt 0:00:26]} 45. f7 {[%emt 0:00:03]} Bf6 {[%emt 0:00:52]} 46. Ke4 {[%emt 0:00:06]} Bg5 {[%emt 0:00:28]} 47. Be6 {[%emt 0:00:48]} Bd2 {[%emt 0:00:32]} 48. Kd5 {[%emt 0:01:38]} Be3 {[%emt 0:00:16]} 49. Kc6 {[%emt 0:00:07]} Bd4 {[%emt 0:00:20]} 50. Kb5 {[%emt 0:01:13]} Be3 {[%emt 0:00:41]} 51. b4 {[%emt 0:01:22]} axb4 {[%emt 0:00:22]} 52. Kxb4 {[%emt 0:00:08]} Bd4 {[%emt 0:00:13]} 53. Kb5 {[%emt 0:00:03]} Be3 {[%emt 0:00:10]} 54. f6 {[%emt 0:00:13]} Bd4 {[%emt 0:00:11]} 55. Kc6 {[%emt 0:00:09]} Be3 {[%emt 0:00:13]} 56. Bc4 {[%emt 0:00:40]} Bd4 {[%emt 0:00:12]} 57. Kb5 {[%emt 0:02:35]} Be3 {[%emt 0:00:07]} 58. Ba2 {[%emt 0:00:23]} Bd4 {[%emt 0:00:08]} 59. Kc4 {[%emt 0:00:03]} Be3 {[%emt 0:00:13]} 60. Kd5 {[%emt 0:00:02]} Bd2 {[%emt 0:00:14]} 61. Bb3 {[%emt 0:00:55]} Be3 {[%emt 0:00:10]} 62. Kd6 {[%emt 0:00:38]} Bd4 {[%emt 0:00:11]} 63. Kc6 {[%emt 0:00:05]} Be3 {[%emt 0:00:07]} 1/2-1/2

[Event "6th Tulsi Lal Memorial NTCC 2080"]
[Site "Lalitpur"]
[Date "2024.01.09"]
[Round "3.4"]
[White "Shah, Abheek"]
[Black "Lohani, Sujana"]
[Result "0-1"]
[ECO "B06"]
[WhiteElo "1543"]
[BlackElo "1756"]
[Annotator "NA RC COMBH"]
[PlyCount "52"]
[EventDate "2024.01.03"]
[EventType "team-tourn"]
[EventCountry "NEP"]
[SourceTitle "playchess.com"]
[Source "ChessBase"]
[SourceQuality "1"]
[TimeControl "5400+30"]

1. e4 {[%emt 1:31:00]} g6 {[%emt 1:31:00]} 2. d4 {[%emt 0:00:30]} Bg7 {[%emt 0:00:00]} 3. f4 {[%emt 0:00:00]} d6 {[%emt 0:00:00]} 4. Nf3 {[%emt 0:00:00]} c5 {[%emt 0:00:00]} 5. dxc5 {[%emt 0:00:00]} Qa5+ {[%emt 0:00:00]} 6. Bd2 {[%emt 0:00:00]} Qxc5 {[%emt 0:00:00]} 7. Bc3 {[%emt 0:00:00]} Nf6 {[%emt 0:00:00]} 8. Bd3 {[%emt 0:00:00]} Qe3+ {[%emt 0:00:00]} 9. Qe2 {[%emt 0:00:00]} Qc1+ {[%emt 0:00:00]} 10. Qd1 {[%emt 0:00:00]} Qxf4 {[%emt 0:00:00]} 11. O-O {[%emt 0:00:00]} O-O {[%emt 0:00:00]} 12. Qe1 {[%emt 0:00:00]} Qg4 {[%emt 0:00:00]} 13. e5 {[%emt 0:00:00]} dxe5 {[%emt 0:00:00]} 14. Nxe5 {[%emt 0:00:00]} Qe6 {[%emt 0:00:00]} 15. Kh1 {[%emt 0:00:00]} Nc6 {[%emt 0:00:00]} 16. Bc4 {[%emt 0:00:00]} Qd6 {[%emt 0:00:00]} 17. Nxc6 {[%emt 0:00:00]} Qxc6 {[%emt 0:00:00]} 18. Qxe7 {[%emt 0:00:00]} Qxc4 {[%emt 0:00:00]} 19. Na3 {[%emt 0:00:00]} Qc6 {[%emt 0:00:00]} 20. Rxf6 {[%emt 0:00:00]} Bxf6 {[%emt 0:00:00]} 21. Bxf6 {[%emt 0:00:00]} Re8 {[%emt 0:00:00]} 22. Qb4 {[%emt 0:00:00]} Qxf6 {[%emt 0:00:00]} 23. Qb5 {[%emt 0:00:00]} Qc6 {[%emt 0:00:00]} 24. Qf1 {[%emt 0:00:00]} b6 {[%emt 0:00:00]} 25. Rd1 {[%emt 0:00:00]} Bb7 {[%emt 0:00:00]} 26. Nc4 {[%emt 0:00:00]} Rad8 {[%emt 0:00:00]} 0-1